[Event "*** Titled Tuesday 3|2 Blitz"]
[Site "Chess.com"]
[Date "2015.04.07"]
[Round "6"]
[White "kesarev"]
[Black "facu57"]
[Result "1-0"]
[WhiteElo "2221"]
[BlackElo "2127"]
[TimeControl "180+2"]
[EndTime "12:19:54 PDT"]
[Termination "kesarev won by resignation"]

1. Nf3 {[%clk 0:03:01.9]} 1... c6 {[%clk 0:02:58.3]} 2. c4 {[%clk 0:03:00.7]}
2... d5 {[%clk 0:02:56.9]} 3. b3 {[%clk 0:03:01.4]} 3... Nf6 {[%clk 0:02:54.5]}
4. g3 {[%clk 0:03:01.8]} 4... Bf5 {[%clk 0:02:51.9]} 5. Bg2 {[%clk 0:03:02]}
5... Nbd7 {[%clk 0:02:47.1]} 6. Bb2 {[%clk 0:03:02.6]} 6... e6 {[%clk
0:02:41.4]} 7. O-O {[%clk 0:03:02.1]} 7... Be7 {[%clk 0:02:41.7]} 8. d3 {[%clk
0:03:02.3]} 8... h6 {[%clk 0:02:37.1]} 9. Nbd2 {[%clk 0:03:02.8]} 9... O-O
{[%clk 0:02:35.1]} 10. Rc1 {[%clk 0:03:02.9]} 10... Bg6 {[%clk 0:02:27.4]} 11.
Rc2 {[%clk 0:03:00.6]} 11... Re8 {[%clk 0:02:23.8]} 12. Qa1 {[%clk 0:03:00.1]}
12... a5 {[%clk 0:02:18.6]} 13. a3 {[%clk 0:03:00]} 13... Bd6 {[%clk 0:02:02.5]}
14. Rcc1 {[%clk 0:02:57.5]} 14... e5 {[%clk 0:02:00.4]} 15. cxd5 {[%clk
0:02:35.8]} 15... cxd5 {[%clk 0:02:01.1]} 16. Rfe1 {[%clk 0:02:10.4]} 16... Qb6
{[%clk 0:01:51.2]} 17. Nh4 {[%clk 0:02:04.7]} 17... Bh7 {[%clk 0:01:41.7]} 18.
e4 {[%clk 0:01:57.8]} 18... Bc5 {[%clk 0:01:34.7]} 19. Rf1 {[%clk 0:01:44.5]}
19... dxe4 {[%clk 0:01:31.4]} 20. dxe4 {[%clk 0:01:29.3]} 20... Ng4 {[%clk
0:01:28.6]} 21. Nc4 {[%clk 0:01:26.4]} 21... Qa7 {[%clk 0:01:09.2]} 22. Rc2
{[%clk 0:01:12.6]} 22... b5 {[%clk 0:01:06.9]} 23. Nxa5 {[%clk 0:00:24.1]} 23...
Bxf2+ {[%clk 0:01:01.1]} 24. Rcxf2 {[%clk 0:00:22]} 24... Nxf2 {[%clk
0:01:00.5]} 25. Rxf2 {[%clk 0:00:19.4]} 25... Qxa5 {[%clk 0:00:58.2]} 26. Nf5
{[%clk 0:00:19]} 26... Bxf5 {[%clk 0:00:57.3]} 27. exf5 {[%clk 0:00:20.1]} 27...
Rad8 {[%clk 0:00:52]} 28. Bc6 {[%clk 0:00:15.8]} 28... Re7 {[%clk 0:00:49.2]}
29. Qf1 {[%clk 0:00:12.7]} 29... Nf6 {[%clk 0:00:48.2]} 30. Qxb5 {[%clk
0:00:12.4]} 30... Qa7 {[%clk 0:00:43.8]} 31. Kg2 {[%clk 0:00:12]} 31... Rb8
{[%clk 0:00:39.5]} 32. Qc4 {[%clk 0:00:11.2]} 32... Rc8 {[%clk 0:00:31.6]} 33.
b4 {[%clk 0:00:10.4]} 33... Qb6 {[%clk 0:00:23.5]} 34. b5 {[%clk 0:00:10.5]}
34... Ne8 {[%clk 0:00:15.5]} 35. a4 {[%clk 0:00:07.1]} 35... Nd6 {[%clk
0:00:15.4]} 36. Qb4 {[%clk 0:00:08.1]} 36... Qc7 {[%clk 0:00:15.9]} 37. f6
{[%clk 0:00:08]} 37... Re6 {[%clk 0:00:14.7]} 38. fxg7 {[%clk 0:00:08.4]} 38...
Ne8 {[%clk 0:00:15.8]} 39. a5 {[%clk 0:00:07.4]} 39... Nxg7 {[%clk 0:00:16.1]}
40. Bd5 {[%clk 0:00:07.3]} 40... Re7 {[%clk 0:00:15.5]} 41. b6 {[%clk
0:00:07.1]} 41... Qc5 {[%clk 0:00:15.5]} 42. Qxc5 {[%clk 0:00:07.5]} 42... Rxc5
{[%clk 0:00:16.5]} 43. b7 {[%clk 0:00:08.8]} 43... Rb5 {[%clk 0:00:17]} 44. a6
{[%clk 0:00:09.7]} 44... Ne6 {[%clk 0:00:14.6]} 45. Bxe6 {[%clk 0:00:09.1]}
45... fxe6 {[%clk 0:00:14]} 46. a7 {[%clk 0:00:10]} 46... Rexb7 {[%clk
0:00:12.8]} 47. a8=Q+ {[%clk 0:00:10.3]} 47... Rb8 {[%clk 0:00:14.7]} 48. Qa2
{[%clk 0:00:10.6]} 48... R5b6 {[%clk 0:00:14.9]} 49. Bxe5 {[%clk 0:00:11.4]}
49... Rc8 {[%clk 0:00:15.3]} 1-0

[Event "*** Titled Tuesday 3|2 Blitz"]
[Site "Chess.com"]
[Date "2015.04.07"]
[Round "6"]
[White "alturas_pacificas"]
[Black "brauliocuarta"]
[Result "0-1"]
[WhiteElo "2128"]
[BlackElo "2073"]
[TimeControl "180+2"]
[EndTime "12:20:06 PDT"]
[Termination "brauliocuarta won by resignation"]

1. d4 {[%clk 0:03:01.9]} 1... Nf6 {[%clk 0:03:00.1]} 2. Bf4 {[%clk 0:03:02]}
2... g6 {[%clk 0:02:49.3]} 3. e3 {[%clk 0:03:03.2]} 3... Bg7 {[%clk 0:02:49.4]}
4. Be2 {[%clk 0:03:04.6]} 4... O-O {[%clk 0:02:50.4]} 5. Nf3 {[%clk 0:03:06.1]}
5... b6 {[%clk 0:02:51.2]} 6. O-O {[%clk 0:03:06.6]} 6... Bb7 {[%clk 0:02:52.5]}
7. h3 {[%clk 0:03:08.2]} 7... c5 {[%clk 0:02:52.5]} 8. c3 {[%clk 0:03:06.9]}
8... d6 {[%clk 0:02:53.4]} 9. a4 {[%clk 0:03:03.5]} 9... Nc6 {[%clk 0:02:52]}
10. Na3 {[%clk 0:03:01]} 10... Re8 {[%clk 0:02:46.3]} 11. Qb3 {[%clk 0:03:00.9]}
11... e5 {[%clk 0:02:37.8]} 12. dxe5 {[%clk 0:02:48.4]} 12... dxe5 {[%clk
0:02:38.3]} 13. Bg3 {[%clk 0:02:44.5]} 13... Na5 {[%clk 0:02:26.5]} 14. Qa2
{[%clk 0:02:22.6]} 14... e4 {[%clk 0:02:13.4]} 15. Rfd1 {[%clk 0:02:18.9]} 15...
Qe7 {[%clk 0:02:11.1]} 16. Bd6 {[%clk 0:02:06.1]} 16... Qe6 {[%clk 0:02:06.8]}
17. Qxe6 {[%clk 0:02:06.8]} 17... Rxe6 {[%clk 0:02:07.3]} 18. Ng5 {[%clk
0:02:04.2]} 18... Ree8 {[%clk 0:02:03.4]} 19. b4 {[%clk 0:01:56]} 19... Nc6
{[%clk 0:01:42.2]} 20. Bc4 {[%clk 0:01:46]} 20... Nd8 {[%clk 0:01:37.7]} 21. Bc7
{[%clk 0:01:00.3]} 21... h6 {[%clk 0:01:27.5]} 22. Bxd8 {[%clk 0:01:00.5]} 22...
hxg5 {[%clk 0:01:28.3]} 23. Bc7 {[%clk 0:00:58.6]} 23... Rac8 {[%clk 0:01:25.9]}
24. Bg3 {[%clk 0:00:53.3]} 24... cxb4 {[%clk 0:01:20.8]} 25. cxb4 {[%clk
0:00:53.4]} 25... Nh5 {[%clk 0:01:21.8]} 26. Rab1 {[%clk 0:00:48.6]} 26... Nxg3
{[%clk 0:01:21.1]} 27. fxg3 {[%clk 0:00:50.5]} 27... a6 {[%clk 0:01:14.9]} 28.
Rd7 {[%clk 0:00:41.9]} 28... Bc6 {[%clk 0:01:06.6]} 29. Rxf7 {[%clk 0:00:39.2]}
29... Kh8 {[%clk 0:01:03.6]} 30. Bxa6 {[%clk 0:00:35.8]} 30... Ra8 {[%clk
0:00:57.8]} 31. b5 {[%clk 0:00:32.6]} 31... Bd5 {[%clk 0:00:56.7]} 32. Rd7
{[%clk 0:00:32.9]} 32... Red8 {[%clk 0:00:44.6]} 33. Rxd8+ {[%clk 0:00:32.9]}
33... Rxd8 {[%clk 0:00:46.4]} 34. Rd1 {[%clk 0:00:33.4]} 34... Bf8 {[%clk
0:00:36.2]} 35. Bb7 {[%clk 0:00:25]} 35... Bxa3 {[%clk 0:00:34.5]} 36. Rxd5
{[%clk 0:00:26]} 36... Rf8 {[%clk 0:00:25.9]} 37. Rxg5 {[%clk 0:00:23.9]} 37...
Bc5 {[%clk 0:00:21.6]} 38. Kh2 {[%clk 0:00:22.2]} 38... Bxe3 {[%clk 0:00:22.2]}
39. Rxg6 {[%clk 0:00:22.9]} 39... Rf1 {[%clk 0:00:16.4]} 40. h4 {[%clk
0:00:23.8]} 40... Bg1+ {[%clk 0:00:14.9]} 41. Kh3 {[%clk 0:00:24.6]} 41... e3
{[%clk 0:00:16.3]} 42. Bf3 {[%clk 0:00:24.2]} 42... Bf2 {[%clk 0:00:13.6]} 43.
Re6 {[%clk 0:00:24.4]} 43... Ra1 {[%clk 0:00:13.5]} 44. h5 {[%clk 0:00:24.9]}
44... Rxa4 {[%clk 0:00:13.7]} 45. g4 {[%clk 0:00:25.1]} 45... Kg7 {[%clk
0:00:12.6]} 46. g3 {[%clk 0:00:18]} 46... Rb4 {[%clk 0:00:11.1]} 47. g5 {[%clk
0:00:18.6]} 47... Rxb5 {[%clk 0:00:11.6]} 48. Re7+ {[%clk 0:00:19.2]} 48... Kf8
{[%clk 0:00:11.6]} 49. Rb7 {[%clk 0:00:17.4]} 49... Rxg5 {[%clk 0:00:12]} 50.
Kh4 {[%clk 0:00:19]} 50... Rxg3 {[%clk 0:00:12.2]} 51. Rxb6 {[%clk 0:00:19.9]}
51... Rxf3+ {[%clk 0:00:11.9]} 52. Kg4 {[%clk 0:00:20]} 52... Rf7 {[%clk
0:00:11.7]} 53. Rb8+ {[%clk 0:00:20.1]} 53... Kg7 {[%clk 0:00:11.8]} 54. Rb1
{[%clk 0:00:21.5]} 54... e2 {[%clk 0:00:12.2]} 55. h6+ {[%clk 0:00:23.4]} 55...
Kh7 {[%clk 0:00:12]} 56. Kh3 {[%clk 0:00:23.4]} 56... e1=Q {[%clk 0:00:12.1]}
57. Rxe1 {[%clk 0:00:23.7]} 57... Bxe1 {[%clk 0:00:13.1]} 58. Kg2 {[%clk
0:00:25.6]} 0-1

[Event "*** Titled Tuesday 3|2 Blitz"]
[Site "Chess.com"]
[Date "2015.04.07"]
[Round "6"]
[White "SCIM"]
[Black "DrHolmes13"]
[Result "1-0"]
[WhiteElo "2068"]
[BlackElo "2204"]
[TimeControl "180+2"]
[EndTime "12:20:44 PDT"]
[Termination "SCIM won by resignation"]

1. e4 {[%clk 0:03:01.9]} 1... c5 {[%clk 0:03:00.5]} 2. Nf3 {[%clk 0:03:00.2]}
2... Nc6 {[%clk 0:03:01.3]} 3. Bb5 {[%clk 0:03:00.4]} 3... e6 {[%clk 0:03:01.8]}
4. Bxc6 {[%clk 0:03:00.4]} 4... bxc6 {[%clk 0:03:03.1]} 5. O-O {[%clk
0:03:00.3]} 5... Ne7 {[%clk 0:03:02.1]} 6. Nc3 {[%clk 0:02:59.9]} 6... Ng6
{[%clk 0:03:00.8]} 7. d3 {[%clk 0:03:00.4]} 7... Be7 {[%clk 0:03:01.2]} 8. Qe2
{[%clk 0:02:53.4]} 8... O-O {[%clk 0:03:01.5]} 9. Na4 {[%clk 0:02:53.2]} 9... d5
{[%clk 0:03:00.9]} 10. e5 {[%clk 0:02:51.2]} 10... Ba6 {[%clk 0:02:49.1]} 11. b3
{[%clk 0:02:50.8]} 11... c4 {[%clk 0:02:36]} 12. dxc4 {[%clk 0:02:44.8]} 12...
dxc4 {[%clk 0:02:37]} 13. Rd1 {[%clk 0:02:40.3]} 13... Qa5 {[%clk 0:02:36.8]}
14. Qe4 {[%clk 0:02:19.9]} 14... Rad8 {[%clk 0:02:19.3]} 15. Bd2 {[%clk
0:02:04.9]} 15... Qd5 {[%clk 0:02:04.3]} 16. Qxd5 {[%clk 0:01:58.3]} 16... cxd5
{[%clk 0:02:04.7]} 17. Be3 {[%clk 0:01:54.1]} 17... Rd7 {[%clk 0:01:42.3]} 18.
g3 {[%clk 0:01:52.3]} 18... Rc8 {[%clk 0:01:40.4]} 19. h4 {[%clk 0:01:49]} 19...
cxb3 {[%clk 0:01:41]} 20. cxb3 {[%clk 0:01:48]} 20... Ba3 {[%clk 0:01:32.9]} 21.
h5 {[%clk 0:01:47]} 21... Nf8 {[%clk 0:01:32.2]} 22. Nd4 {[%clk 0:01:45.5]}
22... h6 {[%clk 0:01:26.6]} 23. Bc1 {[%clk 0:01:41.3]} 23... Bb4 {[%clk
0:01:21.1]} 24. Bd2 {[%clk 0:01:39.8]} 24... Ba3 {[%clk 0:01:21]} 25. Bc1 {[%clk
0:01:36.1]} 25... Bb4 {[%clk 0:01:21.8]} 26. Bb2 {[%clk 0:01:36.2]} 26... Rdc7
{[%clk 0:01:19.4]} 27. a3 {[%clk 0:01:33.2]} 27... Be7 {[%clk 0:01:20.1]} 28.
Rac1 {[%clk 0:01:30.3]} 28... Nd7 {[%clk 0:01:19.4]} 29. f4 {[%clk 0:01:27.7]}
29... Nc5 {[%clk 0:01:19.1]} 30. Nxc5 {[%clk 0:01:21.6]} 30... Bxc5 {[%clk
0:01:19.4]} 31. Kg2 {[%clk 0:01:11.5]} 31... Bxd4 {[%clk 0:01:12.5]} 32. Rxc7
{[%clk 0:01:11]} 32... Rxc7 {[%clk 0:01:06.3]} 33. Bxd4 {[%clk 0:01:05.6]} 33...
Be2 {[%clk 0:01:05.5]} 34. Rd2 {[%clk 0:00:59.8]} 34... Bxh5 {[%clk 0:01:05.7]}
35. b4 {[%clk 0:01:00.8]} 35... a6 {[%clk 0:01:04.4]} 36. a4 {[%clk 0:00:58.9]}
36... Rb7 {[%clk 0:01:04.5]} 37. Rb2 {[%clk 0:00:58.4]} 37... Bg6 {[%clk
0:01:03.2]} 38. b5 {[%clk 0:00:58.3]} 38... axb5 {[%clk 0:01:03.7]} 39. axb5
{[%clk 0:00:59.7]} 39... Bd3 {[%clk 0:01:04.8]} 40. b6 {[%clk 0:00:59.4]} 40...
g5 {[%clk 0:01:03.6]} 41. fxg5 {[%clk 0:00:54.5]} 41... hxg5 {[%clk 0:01:04.3]}
42. Kf3 {[%clk 0:00:53.1]} 42... Kg7 {[%clk 0:01:04.1]} 43. Ra2 {[%clk
0:00:48.2]} 43... Bb5 {[%clk 0:01:03.4]} 44. Ke3 {[%clk 0:00:40.9]} 44... Kg6
{[%clk 0:01:03.7]} 45. Rc2 {[%clk 0:00:37]} 45... Kf5 {[%clk 0:01:00.4]} 46. Kf3
{[%clk 0:00:33.2]} 46... Bc4 {[%clk 0:00:52.5]} 47. g4+ {[%clk 0:00:33]} 47...
Kg6 {[%clk 0:00:53.3]} 48. Ke3 {[%clk 0:00:33]} 48... Kg7 {[%clk 0:00:52.9]} 49.
Bc5 {[%clk 0:00:32.6]} 49... f6 {[%clk 0:00:52.5]} 50. Kd4 {[%clk 0:00:30.2]}
50... Kf7 {[%clk 0:00:51.3]} 51. Rf2 {[%clk 0:00:28.7]} 51... f5 {[%clk
0:00:50.2]} 52. gxf5 {[%clk 0:00:28.9]} 52... exf5 {[%clk 0:00:51.3]} 53. Rxf5+
{[%clk 0:00:29.6]} 53... Kg6 {[%clk 0:00:50.6]} 54. Rf6+ {[%clk 0:00:29.4]}
54... Kg7 {[%clk 0:00:52]} 55. Rf2 {[%clk 0:00:23.7]} 55... g4 {[%clk
0:00:49.4]} 56. Rg2 {[%clk 0:00:23]} 56... Kf7 {[%clk 0:00:50.1]} 57. Rxg4
{[%clk 0:00:23.2]} 57... Ke6 {[%clk 0:00:49.7]} 58. Rg6+ {[%clk 0:00:22.7]}
58... Kf7 {[%clk 0:00:50.8]} 59. Rf6+ {[%clk 0:00:23.8]} 59... Ke8 {[%clk
0:00:51]} 60. e6 {[%clk 0:00:22.7]} 60... Re7 {[%clk 0:00:41.4]} 61. Bxe7 {[%clk
0:00:22.9]} 61... Kxe7 {[%clk 0:00:42.8]} 62. Ke5 {[%clk 0:00:18.2]} 62... Ba6
{[%clk 0:00:43.1]} 63. Rf7+ {[%clk 0:00:19.1]} 63... Ke8 {[%clk 0:00:43.9]} 64.
Ra7 {[%clk 0:00:19.4]} 64... Bc8 {[%clk 0:00:43.9]} 65. Ra8 {[%clk 0:00:19.4]}
65... Kd8 {[%clk 0:00:44.9]} 66. Kd6 {[%clk 0:00:20]} 66... d4 {[%clk
0:00:45.9]} 67. b7 {[%clk 0:00:20.4]} 1-0

[Event "*** Titled Tuesday 3|2 Blitz"]
[Site "Chess.com"]
[Date "2015.04.07"]
[Round "6"]
[White "BjarkeSahl"]
[Black "DanielRensch"]
[Result "1/2-1/2"]
[WhiteElo "2046"]
[BlackElo "2232"]
[TimeControl "180+2"]
[EndTime "12:23:30 PDT"]
[Termination "Game drawn by agreement"]

1. e4 {[%clk 0:03:01.9]} 1... c5 {[%clk 0:03:00.6]} 2. Nf3 {[%clk 0:03:02.4]}
2... d6 {[%clk 0:03:01.6]} 3. d4 {[%clk 0:03:03.8]} 3... cxd4 {[%clk 0:03:03]}
4. Nxd4 {[%clk 0:03:05.4]} 4... Nf6 {[%clk 0:03:04.4]} 5. Nc3 {[%clk 0:03:06.1]}
5... g6 {[%clk 0:03:05.8]} 6. Bc4 {[%clk 0:03:05.5]} 6... Bg7 {[%clk 0:03:06.6]}
7. O-O {[%clk 0:03:07.1]} 7... O-O {[%clk 0:03:04.3]} 8. Re1 {[%clk 0:03:08.5]}
8... Nc6 {[%clk 0:03:02.3]} 9. Bb3 {[%clk 0:03:08.8]} 9... Na5 {[%clk
0:02:59.1]} 10. h3 {[%clk 0:03:06.1]} 10... a6 {[%clk 0:02:54.4]} 11. Bg5 {[%clk
0:03:04.5]} 11... Nxb3 {[%clk 0:02:54.1]} 12. axb3 {[%clk 0:03:04.8]} 12... e6
{[%clk 0:02:45.4]} 13. Qd2 {[%clk 0:03:03.8]} 13... Qc7 {[%clk 0:02:40.9]} 14.
Rad1 {[%clk 0:03:04.5]} 14... b5 {[%clk 0:02:22.7]} 15. Nf3 {[%clk 0:03:02.3]}
15... Bb7 {[%clk 0:02:21.1]} 16. Qxd6 {[%clk 0:02:59.3]} 16... Qxd6 {[%clk
0:02:17.7]} 17. Rxd6 {[%clk 0:02:59.2]} 17... b4 {[%clk 0:02:19]} 18. e5 {[%clk
0:02:41.6]} 18... Ne8 {[%clk 0:02:03.7]} 19. Ne4 {[%clk 0:02:16.8]} 19... Nxd6
{[%clk 0:01:56.3]} 20. Nxd6 {[%clk 0:02:17.5]} 20... Bxf3 {[%clk 0:01:56.5]} 21.
gxf3 {[%clk 0:02:17.7]} 21... f6 {[%clk 0:01:49.8]} 22. Bd2 {[%clk 0:02:16.6]}
22... fxe5 {[%clk 0:01:49.3]} 23. Kg2 {[%clk 0:02:05.5]} 23... Rfd8 {[%clk
0:01:46.6]} 24. Nc4 {[%clk 0:02:04.7]} 24... a5 {[%clk 0:01:42.1]} 25. Bg5
{[%clk 0:01:58.7]} 25... Rf8 {[%clk 0:01:14.8]} 26. Be3 {[%clk 0:01:49.4]} 26...
Ra6 {[%clk 0:00:54.3]} 27. Bb6 {[%clk 0:01:44.9]} 27... a4 {[%clk 0:00:52.1]}
28. Bc5 {[%clk 0:01:22.4]} 28... Rc8 {[%clk 0:00:50.8]} 29. Bxb4 {[%clk
0:01:22.1]} 29... axb3 {[%clk 0:00:51.5]} 30. cxb3 {[%clk 0:01:23.1]} 30... Rb8
{[%clk 0:00:50.9]} 31. Bc3 {[%clk 0:01:17]} 31... Rxb3 {[%clk 0:00:49]} 32. Rd1
{[%clk 0:01:00.6]} 32... Ra8 {[%clk 0:00:41.8]} 33. Rd7 {[%clk 0:01:00.2]} 33...
Rc8 {[%clk 0:00:37.2]} 34. Nd6 {[%clk 0:00:53.6]} 34... Rcb8 {[%clk 0:00:20]}
35. Ne4 {[%clk 0:00:53.4]} 35... R3b7 {[%clk 0:00:19.4]} 36. Rd6 {[%clk
0:00:53.5]} 36... Re8 {[%clk 0:00:19.3]} 37. Ra6 {[%clk 0:00:47.2]} 37... h6
{[%clk 0:00:19]} 38. Nc5 {[%clk 0:00:45.2]} 38... Rbe7 {[%clk 0:00:16.3]} 39. h4
{[%clk 0:00:43.3]} 39... Kh7 {[%clk 0:00:14.7]} 40. Ne4 {[%clk 0:00:43.8]} 40...
Rc8 {[%clk 0:00:13.6]} 41. Kg3 {[%clk 0:00:40.7]} 41... Rc4 {[%clk 0:00:13.3]}
42. Nd6 {[%clk 0:00:34.1]} 42... Rcc7 {[%clk 0:00:13]} 43. Ne4 {[%clk 0:00:35]}
43... Ra7 {[%clk 0:00:14.1]} 44. Rb6 {[%clk 0:00:35.1]} 44... Rab7 {[%clk
0:00:15.2]} 45. Rc6 {[%clk 0:00:36.6]} 45... Rbc7 {[%clk 0:00:16.5]} 46. Ra6
{[%clk 0:00:37.6]} 46... Rb7 {[%clk 0:00:17.6]} 47. Rc6 {[%clk 0:00:38.2]} 47...
Rbd7 {[%clk 0:00:18]} 48. Ra6 {[%clk 0:00:39.1]} 48... Rd5 {[%clk 0:00:18.7]}
49. Rc6 {[%clk 0:00:37.8]} 49... Kg8 {[%clk 0:00:18.3]} 50. Rc8+ {[%clk
0:00:38.1]} 50... Kh7 {[%clk 0:00:18.7]} 51. Rc6 {[%clk 0:00:39.7]} 51... Kg8
{[%clk 0:00:17.9]} 52. Rc8+ {[%clk 0:00:40.5]} 52... Kf7 {[%clk 0:00:19.3]} 53.
Rc6 {[%clk 0:00:41.9]} 53... Red7 {[%clk 0:00:20.5]} 54. Rc8 {[%clk 0:00:40.4]}
54... Rd8 {[%clk 0:00:20.3]} 55. Rc7+ {[%clk 0:00:41]} 55... R5d7 {[%clk
0:00:21.5]} 56. Rc6 {[%clk 0:00:42.1]} 56... Ke7 {[%clk 0:00:21.6]} 57. Bb4+
{[%clk 0:00:41.9]} 57... Kf7 {[%clk 0:00:22.7]} 58. Nd6+ {[%clk 0:00:39.1]}
58... Kg8 {[%clk 0:00:23.6]} 59. Ne4 {[%clk 0:00:40.6]} 59... Kf7 {[%clk
0:00:24.6]} 60. Kg2 {[%clk 0:00:40.4]} 60... Bf8 {[%clk 0:00:25.3]} 61. Bc3
{[%clk 0:00:40.7]} 61... Be7 {[%clk 0:00:25.3]} 62. Bxe5 {[%clk 0:00:32.3]}
62... Bxh4 {[%clk 0:00:25.6]} 63. f4 {[%clk 0:00:22.8]} 63... Be7 {[%clk
0:00:26]} 64. Ra6 {[%clk 0:00:18.5]} 64... h5 {[%clk 0:00:25.3]} 65. Rc6 {[%clk
0:00:17.8]} 65... h4 {[%clk 0:00:25.6]} 66. Kh3 {[%clk 0:00:16.5]} 66... Rd3+
{[%clk 0:00:26.3]} 67. Kh2 {[%clk 0:00:15.3]} 67... Rf3 {[%clk 0:00:22.2]} 68.
Rc7 {[%clk 0:00:13.5]} 68... Rfd3 {[%clk 0:00:20.3]} 69. Ng5+ {[%clk 0:00:13.3]}
69... Ke8 {[%clk 0:00:21.4]} 70. Nxe6 {[%clk 0:00:14.1]} 70... Ra8 {[%clk
0:00:19.7]} 71. Nd4 {[%clk 0:00:11]} 71... Ra4 {[%clk 0:00:18.3]} 72. Nc6 {[%clk
0:00:11.5]} 72... Bd8 {[%clk 0:00:18]} 73. Rh7 {[%clk 0:00:12]} 73... h3 {[%clk
0:00:17]} 74. Rxh3 {[%clk 0:00:12.3]} 74... Rxh3+ {[%clk 0:00:17.5]} 75. Kxh3
{[%clk 0:00:13.5]} 75... Bb6 {[%clk 0:00:19.2]} 76. f3 {[%clk 0:00:13.1]} 76...
Ra1 {[%clk 0:00:19.7]} 77. Kg4 {[%clk 0:00:13.3]} 77... Rg1+ {[%clk 0:00:20.6]}
78. Kh3 {[%clk 0:00:14.9]} 78... Kf7 {[%clk 0:00:21.5]} 79. Nb4 {[%clk
0:00:14.2]} 79... Bf2 {[%clk 0:00:21.7]} 80. Nd3 {[%clk 0:00:14.8]} 80... Be3
{[%clk 0:00:22.9]} 81. b4 {[%clk 0:00:15.2]} 81... Rd1 {[%clk 0:00:23.5]} 82.
Nc5 {[%clk 0:00:15.3]} 82... Rb1 {[%clk 0:00:23.2]} 83. Ne4 {[%clk 0:00:15.2]}
83... Rxb4 {[%clk 0:00:22]} 84. Ng5+ {[%clk 0:00:16.7]} 84... Ke8 {[%clk
0:00:22.6]} 85. Kg4 {[%clk 0:00:18.3]} 85... Ra4 {[%clk 0:00:23.1]} 86. Ne6
{[%clk 0:00:19.1]} 86... Kf7 {[%clk 0:00:23.5]} 87. Nd8+ {[%clk 0:00:19.6]}
87... Kg8 {[%clk 0:00:24.4]} 88. Kg5 {[%clk 0:00:20.2]} 88... Ra5 {[%clk
0:00:23.4]} 89. Kxg6 {[%clk 0:00:20.2]} 89... Bb6 {[%clk 0:00:23.2]} 90. Ne6
{[%clk 0:00:18.7]} 90... Ra1 {[%clk 0:00:23.5]} 91. f5 {[%clk 0:00:19.4]} 91...
Rg1+ {[%clk 0:00:23.3]} 92. Kh5 {[%clk 0:00:20.9]} 92... Kf7 {[%clk 0:00:20.5]}
93. f4 {[%clk 0:00:20.7]} 93... Bf2 {[%clk 0:00:20.1]} 94. Ng5+ {[%clk
0:00:21.4]} 94... Kf8 {[%clk 0:00:20.8]} 95. f6 {[%clk 0:00:22.5]} 95... Bc5
{[%clk 0:00:21.5]} 96. Kg6 {[%clk 0:00:23.3]} 96... Ke8 {[%clk 0:00:19]} 97. f7+
{[%clk 0:00:24.2]} 97... Kd7 {[%clk 0:00:20]} 98. Bd4 {[%clk 0:00:24.9]} 98...
Be7 {[%clk 0:00:19.4]} 99. Bg7 {[%clk 0:00:26.4]} 99... Rg2 {[%clk 0:00:18.2]}
100. f8=Q {[%clk 0:00:27.1]} 100... Bxf8 {[%clk 0:00:19.1]} 101. Bxf8 {[%clk
0:00:28.6]} 101... Rf2 {[%clk 0:00:19.5]} 102. f5 {[%clk 0:00:27.9]} 102... Rxf5
{[%clk 0:00:20.7]} 103. Kxf5 {[%clk 0:00:29]} 103... Ke8 {[%clk 0:00:22.1]} 104.
Bg7 {[%clk 0:00:30]} 104... Ke7 {[%clk 0:00:23]} 105. Be5 {[%clk 0:00:31.4]}
105... Kd7 {[%clk 0:00:24.4]} 106. Ke4 {[%clk 0:00:29.6]} 1/2-1/2

[Event "*** Titled Tuesday 3|2 Blitz"]
[Site "Chess.com"]
[Date "2015.04.07"]
[Round "7"]
[White "zmaj23"]
[Black "megarompa"]
[Result "1/2-1/2"]
[WhiteElo "2416"]
[BlackElo "2694"]
[TimeControl "180+2"]
[EndTime "12:25:16 PDT"]
[Termination "Game drawn by agreement"]

1. e4 {[%clk 0:03:01.9]} 1... c5 {[%clk 0:02:55.8]} 2. Nf3 {[%clk 0:03:00.8]}
2... e6 {[%clk 0:02:56.8]} 3. d4 {[%clk 0:03:00.6]} 3... cxd4 {[%clk 0:02:56]}
4. Nxd4 {[%clk 0:03:02.5]} 4... Nf6 {[%clk 0:02:56.7]} 5. Nc3 {[%clk 0:03:02.2]}
5... Nc6 {[%clk 0:02:57.8]} 6. a3 {[%clk 0:03:00.8]} 6... Bc5 {[%clk 0:02:55.8]}
7. Nxc6 {[%clk 0:02:55.7]} 7... dxc6 {[%clk 0:02:56.9]} 8. e5 {[%clk 0:02:56]}
8... Qxd1+ {[%clk 0:02:54.7]} 9. Nxd1 {[%clk 0:02:53.9]} 9... Nd5 {[%clk
0:02:53.6]} 10. c4 {[%clk 0:02:52.5]} 10... Ne7 {[%clk 0:02:52.1]} 11. Be3
{[%clk 0:02:53.6]} 11... Bxe3 {[%clk 0:02:51.7]} 12. Nxe3 {[%clk 0:02:54.1]}
12... Ng6 {[%clk 0:02:53.6]} 1/2-1/2

[Event "*** Titled Tuesday 3|2 Blitz"]
[Site "Chess.com"]
[Date "2015.04.07"]
[Round "7"]
[White "SCIM"]
[Black "HansCoolNiemann"]
[Result "1-0"]
[WhiteElo "2080"]
[BlackElo "1864"]
[TimeControl "180+2"]
[EndTime "12:28:16 PDT"]
[Termination "SCIM won by checkmate"]

1. e4 {[%clk 0:03:00.3]} 1... d5 {[%clk 0:03:00]} 2. exd5 {[%clk 0:03:00.3]}
2... Qxd5 {[%clk 0:03:01.9]} 3. Nc3 {[%clk 0:03:01]} 3... Qd6 {[%clk 0:03:02.3]}
4. d4 {[%clk 0:02:55.8]} 4... c6 {[%clk 0:03:03.3]} 5. Nf3 {[%clk 0:02:51.5]}
5... Bg4 {[%clk 0:03:04]} 6. Bc4 {[%clk 0:02:45.5]} 6... Nf6 {[%clk 0:02:55]} 7.
Bxf7+ {[%clk 0:02:30.3]} 7... Kxf7 {[%clk 0:02:54.9]} 8. Ne5+ {[%clk 0:02:29.7]}
8... Qxe5+ {[%clk 0:02:55.6]} 9. dxe5 {[%clk 0:02:30.1]} 9... Bxd1 {[%clk
0:02:56.3]} 10. Nxd1 {[%clk 0:02:25.3]} 10... Nfd7 {[%clk 0:02:55.6]} 11. f4
{[%clk 0:02:25.2]} 11... e6 {[%clk 0:02:54]} 12. O-O {[%clk 0:02:24.2]} 12...
Bc5+ {[%clk 0:02:54.2]} 13. Be3 {[%clk 0:02:24.1]} 13... Bxe3+ {[%clk
0:02:54.5]} 14. Nxe3 {[%clk 0:02:23.8]} 14... Na6 {[%clk 0:02:55.5]} 15. Rad1
{[%clk 0:02:23.1]} 15... Rad8 {[%clk 0:02:54.9]} 16. Nc4 {[%clk 0:02:22.4]}
16... Ke7 {[%clk 0:02:52.1]} 17. Nd6 {[%clk 0:02:19]} 17... b6 {[%clk
0:02:52.8]} 18. Rf3 {[%clk 0:02:13.8]} 18... Ndc5 {[%clk 0:02:53.1]} 19. Rg3
{[%clk 0:02:10.5]} 19... g6 {[%clk 0:02:53.3]} 20. c3 {[%clk 0:01:58.3]} 20...
Ne4 {[%clk 0:02:50.7]} 21. Rgd3 {[%clk 0:01:57.9]} 21... Nxd6 {[%clk 0:02:51.3]}
22. exd6+ {[%clk 0:01:51.7]} 22... Kd7 {[%clk 0:02:51.7]} 23. b4 {[%clk
0:01:48.2]} 23... Rhf8 {[%clk 0:02:50.4]} 24. g3 {[%clk 0:01:47.1]} 24... Nb8
{[%clk 0:02:43.9]} 25. c4 {[%clk 0:01:42.5]} 25... Na6 {[%clk 0:02:39.1]} 26.
Ra3 {[%clk 0:01:39.2]} 26... Nb8 {[%clk 0:02:19.7]} 27. Rxa7+ {[%clk 0:01:37.2]}
27... Ke8 {[%clk 0:02:18.1]} 28. Re7# {[%clk 0:01:34.1]} 1-0